Workbook

Sheet RecursosMO
N2: macro 1 resumir operaciones asignar valores hasta la fila 79, esta debe variar si las filas se garegan la macro debe funcionar
H7: Horario | I7: JULIO | AI7: AGOSTO | BN7: SETIEMBRE | CR7: OCTUBRE | DW7: NOVIEMBRE
H8: 9.5 | I8: 1 | J8: 2 | K8: 3 | L8: 4 | M8: 5 | N8: 6 | O8: 7 | P8: 8 | Q8: 9 | R8: 10 | S8: 11 | T8: 12 | U8: 13 | V8: 14 | W8: 15 | X8: 16 | Y8: 17 | Z8: 18 | AA8: 19 | AB8: 20 | AC8: 21 | AD8: 22 | AE8: 23 | AF8: 24 | AG8: 25 | AH8: 26 | AI8: 27 | AJ8: 28 | AK8: 29 | AL8: 30 | AM8: 31 | AN8: 32 | AO8: 33 | AP8: 34 | AQ8: 35 | AR8: 36 | AS8: 37 | AT8: 38 | AU8: 39 | AV8: 40 | AW8: 41 | AX8: 42 | AY8: 43 | AZ8: 44 | BA8: 45 | BB8: 46 | BC8: 47 | BD8: 48 | BE8: 49 | BF8: 50 | BG8: 51 | BH8: 52 | BI8: 53 | BJ8: 54 | BK8: 55 | BL8: 56 | BM8: 57 | BN8: 58 | BO8: 59 | BP8: 60 | BQ8: 61 | BR8: 62 | BS8: 63 | BT8: 64 | BU8: 65 | BV8: 66 | BW8: 67 | BX8: 68 | BY8: 69 | BZ8: 70 | CA8: 71 | CB8: 72 | CC8: 73 | CD8: 74 | CE8: 75 | CF8: 76 | CG8: 77 | CH8: 78 | CI8: 79 | CJ8: 80 | CK8: 81 | CL8: 82 | CM8: 83 | CN8: 84 | CO8: 85 | CP8: 86 | CQ8: 87 | CR8: 88 | CS8: 89 | CT8: 90 | CU8: 91 | CV8: 92 | CW8: 93 | CX8: 94 | CY8: 95 | CZ8: 96 | DA8: 97 | DB8: 98 | DC8: 99 | DD8: 100 | DE8: 101 | DF8: 102 | DG8: 103 | DH8: 104 | DI8: 105 | DJ8: 106 | DK8: 107 | DL8: 108 | DM8: 109 | DN8: 110 | DO8: 111 | DP8: 112 | DQ8: 113 | DR8: 114 | DS8: 115 | DT8: 116 | DU8: 117 | DV8: 118 | DW8: 119 | DX8: 120 | DY8: 121 | DZ8: 122 | EA8: 123 | EB8: 124 | EC8: 125 | ED8: 126
I9: Semana Nº 1 | P9: Semana Nº 2 | W9: Semana Nº 3 | AD9: Semana Nº 4 | AK9: Semana Nº 5 | AR9: Semana Nº 6 | AY9: Semana Nº 7 | BF9: Semana Nº 8 | BM9: Semana Nº 9 | BT9: Semana Nº 10 | CA9: Semana Nº 11 | CH9: Semana Nº 12 | CO9: Semana Nº 13 | CV9: Semana Nº 14 | DC9: Semana Nº 15 | DJ9: Semana Nº 16 | DQ9: Semana Nº 17 | DX9: Semana Nº 18
B10: FASE O PLAN | C10: ETAPA | D10: ACTIVIDADES | E10: und | F10: Metrado Piso Tipico | G10: Metrado por Sector | H10: Ratio | I10: L | J10: M | K10: X | L10: J | M10: V | N10: S | O10: D | P10: L | Q10: M | R10: X | S10: J | T10: V | U10: S | V10: D | W10: L | X10: M | Y10: X | Z10: J | AA10: V | AB10: S | AC10: D | AD10: L | AE10: M | AF10: X | AG10: J | AH10: V | AI10: S | AJ10: D | AK10: L | AL10: M | AM10: X | AN10: J | AO10: V | AP10: S | AQ10: D | AR10: L | AS10: M | AT10: X | AU10: J | AV10: V | AW10: S | AX10: D | AY10: L | AZ10: M | BA10: X | BB10: J | BC10: V | BD10: S | BE10: D | BF10: L | BG10: M | BH10: X | BI10: J | BJ10: V | BK10: S | BL10: D | BM10: L | BN10: M | BO10: X | BP10: J | BQ10: V | BR10: S | BS10: D | BT10: L | BU10: M | BV10: X | BW10: J | BX10: V | BY10: S | BZ10: D | CA10: L | CB10: M | CC10: X | CD10: J | CE10: V | CF10: S | CG10: D | CH10: L | CI10: M | CJ10: X | CK10: J | CL10: V | CM10: S | CN10: D | CO10: L | CP10: M | CQ10: X | CR10: J | CS10: V | CT10: S | CU10: D | CV10: L | CW10: M | CX10: X | CY10: J | CZ10: V | DA10: S | DB10: D | DC10: L | DD10: M | DE10: X | DF10: J | DG10: V | DH10: S | DI10: D | DJ10: L | DK10: M | DL10: X | DM10: J | DN10: V | DO10: S | DP10: D | DQ10: L | DR10: M | DS10: X | DT10: J | DU10: V | DV10: S | DW10: D | DX10: L | DY10: M | DZ10: X | EA10: J | EB10: V | EC10: S | ED10: D
H11: Productividad | I11: 2020-07-06 | J11: 2020-07-07 | K11: 2020-07-08 | L11: 2020-07-09 | M11: 2020-07-10 | N11: 2020-07-11 | O11: 2020-07-12 | P11: 2020-07-13 | Q11: 2020-07-14 | R11: 2020-07-15 | S11: 2020-07-16 | T11: 2020-07-17 | U11: 2020-07-18 | V11: 2020-07-19 | W11: 2020-07-20 | X11: 2020-07-21 | Y11: 2020-07-22 | Z11: 2020-07-23 | AA11: 2020-07-24 | AB11: 2020-07-25 | AC11: 2020-07-26 | AD11: 2020-07-27 | AE11: 2020-07-28 | AF11: 2020-07-29 | AG11: 2020-07-30 | AH11: 2020-07-31 | AI11: 2020-08-01 | AJ11: 2020-08-02 | AK11: 2020-08-03 | AL11: 2020-08-04 | AM11: 2020-08-05 | AN11: 2020-08-06 | AO11: 2020-08-07 | AP11: 2020-08-08 | AQ11: 2020-08-09 | AR11: 2020-08-10 | AS11: 2020-08-11 | AT11: 2020-08-12 | AU11: 2020-08-13 | AV11: 2020-08-14 | AW11: 2020-08-15 | AX11: 2020-08-16 | AY11: 2020-08-17 | AZ11: 2020-08-18 | BA11: 2020-08-19 | BB11: 2020-08-20 | BC11: 2020-08-21 | BD11: 2020-08-22 | BE11: 2020-08-23 | BF11: 2020-08-24 | BG11: 2020-08-25 | BH11: 2020-08-26 | BI11: 2020-08-27 | BJ11: 2020-08-28 | BK11: 2020-08-29 | BL11: 2020-08-30 | BM11: 2020-08-31 | BN11: 2020-09-01 | BO11: 2020-09-02 | BP11: 2020-09-03 | BQ11: 2020-09-04 | BR11: 2020-09-05 | BS11: 2020-09-06 | BT11: 2020-09-07 | BU11: 2020-09-08 | BV11: 2020-09-09 | BW11: 2020-09-10 | BX11: 2020-09-11 | BY11: 2020-09-12 | BZ11: 2020-09-13 | CA11: 2020-09-14 | CB11: 2020-09-15 | CC11: 2020-09-16 | CD11: 2020-09-17 | CE11: 2020-09-18 | CF11: 2020-09-19 | CG11: 2020-09-20 | CH11: 2020-09-21 | CI11: 2020-09-22 | CJ11: 2020-09-23 | CK11: 2020-09-24 | CL11: 2020-09-25 | CM11: 2020-09-26 | CN11: 2020-09-27 | CO11: 2020-09-28 | CP11: 2020-09-29 | CQ11: 2020-09-30 | CR11: 2020-10-01 | CS11: 2020-10-02 | CT11: 2020-10-03 | CU11: 2020-10-04 | CV11: 2020-10-05 | CW11: 2020-10-06 | CX11: 2020-10-07 | CY11: 2020-10-08 | CZ11: 2020-10-09 | DA11: 2020-10-10 | DB11: 2020-10-11 | DC11: 2020-10-12 | DD11: 2020-10-13 | DE11: 2020-10-14 | DF11: 2020-10-15 | DG11: 2020-10-16 | DH11: 2020-10-17 | DI11: 2020-10-18 | DJ11: 2020-10-19 | DK11: 2020-10-20 | DL11: 2020-10-21 | DM11: 2020-10-22 | DN11: 2020-10-23 | DO11: 2020-10-24 | DP11: 2020-10-25 | DQ11: 2020-10-26 | DR11: 2020-10-27 | DS11: 2020-10-28 | DT11: 2020-10-29 | DU11: 2020-10-30 | DV11: 2020-10-31 | DW11: 2020-11-01 | DX11: 2020-11-02 | DY11: 2020-11-03 | DZ11: 2020-11-04 | EA11: 2020-11-05 | EB11: 2020-11-06 | EC11: 2020-11-07 | ED11: 2020-11-08
D12: tarea1 | E12: glb.
D13: tarea2 | E13: glb. | F13: 1 | G13: 9.5 | H13: 9 | I13: S1 | J13: S2 | K13: S3 | L13: S4 | M13: S5 | N13: S6 | P13: S7
D14: tarea3 | E14: glb.
D15: tarea4 | E15: glb. | F15: 1 | G15: 9.5 | H15: 4 | P15: P1S1 | Q15: P1S2 | R15: P1S3 | S15: P1S4 | T15: P1S5 | U15: P1S6
D16: tarea5 | E16: glb. | F16: 1 | G16: 9.5 | H16: 4 | P16: P1S1 | Q16: P1S2 | R16: P1S3 | S16: P1S4 | T16: P1S5 | U16: P1S6
D17: tarea6 | E17: glb. | F17: 1 | G17: 9.5 | H17: 4 | Q17: P1S1 | R17: P1S2 | S17: P1S3 | T17: P1S4 | U17: P1S5 | W17: P1S6
D18: tarea7 | E18: glb. | F18: 1 | G18: 9.5 | H18: 2 | R18: P1S1 | S18: P1S2 | T18: P1S3 | U18: P1S4 | W18: P1S5 | X18: P1S6
D19: tarea8 | E19: glb. | F19: 1 | G19: 9.5 | H19: 2 | S19: P1S1 | T19: P1S2 | U19: P1S3 | W19: P1S4 | X19: P1S5 | Y19: P1S6
D20: tarea9 | E20: glb. | F20: 1 | G20: 9.5 | H20: 2 | BR20: P1S1 | BT20: P1S1 | BU20: P1S1 | BV20: P1S2 | BW20: P1S2 | BX20: P1S2 | BY20: P1S3 | CA20: P1S3 | CB20: P1S3 | CC20: P1S4 | CD20: P1S4 | CE20: P1S4 | CF20: P1S5 | CH20: P1S5 | CI20: P1S5 | CJ20: P1S6 | CK20: P1S6 | CL20: P1S6 | CM20: P1S7 | CO20: P1S7 | CP20: P1S7 | CQ20: P1S8 | CR20: P1S8 | CS20: P1S8 | CT20: P1S9 | CV20: P1S9 | CW20: P1S9
D21: tarea10 | E21: glb. | F21: 1 | G21: 9.5 | H21: 3 | BF21: P1S1 | BG21: P1S1 | BH21: P1S1 | BI21: P1S2 | BJ21: P1S2 | BK21: P1S2 | BM21: P1S3 | BN21: P1S3 | BO21: P1S3 | BP21: P1S4 | BQ21: P1S4 | BR21: P1S4 | BT21: P1S5 | BU21: P1S5 | BV21: P1S5 | BW21: P1S6 | BX21: P1S6 | BY21: P1S6 | CA21: P1S7 | CB21: P1S7 | CC21: P1S7 | CD21: P1S8 | CE21: P1S8 | CF21: P1S8 | CH21: P1S9 | CI21: P1S9 | CJ21: P1S9 | CK21: P1S10 | CL21: P1S10 | CM21: P1S10 | CO21: P1S11
D22: tarea11 | E22: glb. | G22: 0
D23: tarea12 | E23: glb. | F23: 736.632 | G23: 66.96654545 | H23: 0.1470909091 | W23: P1S1 | X23: P1S2 | Y23: P1S3 | Z23: P1S4 | AA23: P1S5 | AB23: P1S6 | AD23: P1S7 | AG23: P1S8
D24: tarea13 | E24: glb. | F24: 421.1091 | G24: 38.28264545 | H24: 2.136363636 | AD24: P1S1 | AG24: P1S2 | AH24: P1S3 | AI24: P1S4 | AK24: P1S5 | AL24: P1S6 | AM24: P1S7 | AN24: P1S8
D25: tarea14 | E25: glb. | G25: 0
D26: tarea15 | E26: glb. | F26: 270.4185 | G26: 33.8023125 | H26: 0.6545454545 | AG26: P1S1 | AH26: P1S2 | AI26: P1S3 | AK26: P1S4 | AL26: P1S5 | AM26: P1S6 | AN26: P1S7 | AO26: P1S8
D27: tarea16 | E27: glb. | F27: 6678.2 | G27: 834.775 | H27: 0.042 | AH27: P1S1 | AI27: P1S2 | AK27: P1S3 | AL27: P1S4 | AM27: P1S5 | AN27: P1S6 | AO27: P1S7 | AP27: P1S8
D28: tarea17 | E28: glb. | F28: 171.02 | G28: 21.3775 | H28: 1.909090909 | AI28: P1S1 | AK28: P1S2 | AL28: P1S3 | AM28: P1S4 | AN28: P1S5 | AO28: P1S6 | AP28: P1S7 | AR28: P1S8
D29: tarea18 | E29: glb. | F29: 162.25 | G29: 20.28125 | H29: 0.7 | AI29: P1S1 | AK29: P1S2 | AL29: P1S3 | AM29: P1S4 | AN29: P1S5 | AO29: P1S6 | AP29: P1S7 | AR29: P1S8
D30: tarea19 | E30: glb. | F30: 21942.43883 | G30: 2742.804854 | H30: 0.042 | AK30: P1S1 | AL30: P1S2 | AM30: P1S3 | AN30: P1S4 | AO30: P1S5 | AP30: P1S6 | AR30: P1S7 | AS30: P1S8
D31: tarea20 | E31: glb. | F31: 1463.001 | G31: 182.875125 | H31: 1.909090909 | AL31: P1S1 | AM31: P1S2 | AN31: P1S3 | AO31: P1S4 | AP31: P1S5 | AR31: P1S6 | AS31: P1S7 | AT31: P1S8
D32: tarea21 | E32: glb. | F32: 182.877225 | G32: 22.85965313 | H32: 0.7 | AL32: P1S1 | AM32: P1S2 | AN32: P1S3 | AO32: P1S4 | AP32: P1S5 | AR32: P1S6 | AS32: P1S7 | AT32: P1S8
D33: tarea22 | E33: glb. | G33: 0
D34: tarea23 | E34: glb. | G34: 0 | H34: 2.136363636 | AR34: P1S1 | AS34: P1S2 | AT34: P1S3 | AU34: P1S4 | AV34: P1S5 | AW34: P1S6 | AY34: P1S7 | AZ34: P1S8
D35: tarea24 | E35: glb. | F35: 132.99 | G35: 16.62375 | H35: 1 | AR35: P1S1 | AS35: P1S2 | AT35: P1S3 | AU35: P1S4 | AV35: P1S5 | AW35: P1S6 | AY35: P1S7 | AZ35: P1S8
D36: tarea25 | E36: glb. | F36: 5022.432 | G36: 627.804 | H36: 0.042 | AS36: P1S1 | AT36: P1S2 | AU36: P1S3 | AV36: P1S4 | AW36: P1S5 | AY36: P1S6 | AZ36: P1S7 | BA36: P1S8
D37: tarea26 | E37: glb. | F37: 346.45 | G37: 43.30625 | H37: 0.7636363636 | AT37: P1S1 | AU37: P1S2 | AV37: P1S3 | AW37: P1S4 | AY37: P1S5 | AZ37: P1S6 | BA37: P1S7 | BB37: P1S8
D38: tarea27 | E38: glb. | F38: 109.239 | G38: 13.654875 | H38: 0.7 | AT38: P1S1 | AU38: P1S2 | AV38: P1S3 | AW38: P1S4 | AY38: P1S5 | AZ38: P1S6 | BA38: P1S7 | BB38: P1S8
D39: tarea28 | E39: glb. | G39: 0 | H39: 0.9043478261 | AU39: P1S1 | AV39: P1S2 | AW39: P1S3 | AY39: P1S4 | AZ39: P1S5 | BA39: P1S6 | BB39: P1S7 | BC39: P1S8
D40: tarea29 | E40: glb. | G40: 0
D41: tarea30 | E41: glb. | F41: 21663.88973 | G41: 1969.444521 | H41: 0.042 | AV41: P1S1 | AW41: P1S2 | AY41: P1S3 | AZ41: P1S4 | BA41: P1S5 | BB41: P1S6 | BC41: P1S7 | BD41: P1S8 | BF41: P1S9 | BG41: P1S10 | BH41: P1S11
D42: tarea31 | E42: glb. | F42: 442.26 | G42: 40.20545455 | H42: 1.75 | AW42: P1S1 | AY42: P1S2 | AZ42: P1S3 | BA42: P1S4 | BB42: P1S5 | BC42: P1S6 | BD42: P1S7 | BF42: P1S8 | BG42: P1S9 | BH42: P1S10 | BI42: P1S11
D43: tarea32 | E43: glb. | F43: 62.244 | G43: 5.658545455 | H43: 1.792 | AW43: P1S1 | AY43: P1S2 | AZ43: P1S3 | BA43: P1S4 | BB43: P1S5 | BC43: P1S6 | BD43: P1S7 | BF43: P1S8 | BG43: P1S9 | BH43: P1S10 | BI43: P1S11
D44: tarea33 | E44: glb. | G44: 0
D45: tarea34 | E45: glb. | F45: 941.64 | G45: 85.60363636 | H45: 1.565217391 | AY45: P1S1 | AZ45: P1S1 | BA45: P1S2 | BB45: P1S2 | BC45: P1S3 | BD45: P1S3 | BF45: P1S4 | BG45: P1S4 | BH45: P1S5 | BI45: P1S5 | BJ45: P1S6 | BK45: P1S6 | BM45: P1S7 | BN45: P1S7 | BO45: P1S8 | BP45: P1S8 | BQ45: P1S9 | BR45: P1S9 | BT45: P1S10 | BU45: P1S10 | BV45: P1S11 | BW45: P1S11
D46: tarea35 | E46: glb. | F46: 35785.14143 | G46: 3253.194675 | H46: 0.042 | AZ46: P1S1 | BA46: P1S1 | BB46: P1S2 | BC46: P1S2 | BD46: P1S3 | BF46: P1S3 | BG46: P1S4 | BH46: P1S4 | BI46: P1S5 | BJ46: P1S5 | BK46: P1S6 | BM46: P1S6 | BN46: P1S7 | BO46: P1S7 | BP46: P1S8 | BQ46: P1S8 | BR46: P1S9 | BT46: P1S9 | BU46: P1S10 | BV46: P1S10 | BW46: P1S11 | BX46: P1S11
D47: tarea36 | E47: glb. | F47: 3808.017 | G47: 346.1833636 | H47: 1.565217391 | BA47: P1S1 | BB47: P1S1 | BC47: P1S2 | BD47: P1S2 | BF47: P1S3 | BG47: P1S3 | BH47: P1S4 | BI47: P1S4 | BJ47: P1S5 | BK47: P1S5 | BM47: P1S6 | BN47: P1S6 | BO47: P1S7 | BP47: P1S7 | BQ47: P1S8 | BR47: P1S8 | BT47: P1S9 | BU47: P1S9 | BV47: P1S10 | BW47: P1S10 | BX47: P1S11 | BY47: P1S11
D48: tarea37 | E48: glb. | F48: 78318.23631 | G48: 7119.839664 | H48: 0.042 | BB48: P1S1 | BC48: P1S1 | BD48: P1S2 | BF48: P1S2 | BG48: P1S3 | BH48: P1S3 | BI48: P1S4 | BJ48: P1S4 | BK48: P1S5 | BM48: P1S5 | BN48: P1S6 | BO48: P1S6 | BP48: P1S7 | BQ48: P1S7 | BR48: P1S8 | BT48: P1S8 | BU48: P1S9 | BV48: P1S9 | BW48: P1S10 | BX48: P1S10 | BY48: P1S11 | CA48: P1S11
D49: tarea38 | E49: glb. | F49: 1 | G49: 0.09090909091 | H49: 4 | BC49: P1S1 | BD49: P1S1 | BF49: P1S2 | BG49: P1S2 | BH49: P1S3 | BI49: P1S3 | BJ49: P1S4 | BK49: P1S4 | BM49: P1S5 | BN49: P1S5 | BO49: P1S6 | BP49: P1S6 | BQ49: P1S7 | BR49: P1S7 | BT49: P1S8 | BU49: P1S8 | BV49: P1S9 | BW49: P1S9 | BX49: P1S10 | BY49: P1S10 | CA49: P1S11 | CB49: P1S11
D50: tarea39 | E50: glb. | F50: 1 | G50: 0.09090909091 | H50: 4 | BC50: P1S1 | BD50: P1S1 | BF50: P1S2 | BG50: P1S2 | BH50: P1S3 | BI50: P1S3 | BJ50: P1S4 | BK50: P1S4 | BM50: P1S5 | BN50: P1S5 | BO50: P1S6 | BP50: P1S6 | BQ50: P1S7 | BR50: P1S7 | BT50: P1S8 | BU50: P1S8 | BV50: P1S9 | BW50: P1S9 | BX50: P1S10 | BY50: P1S10 | CA50: P1S11 | CB50: P1S11
D51: tarea40 | E51: glb. | F51: 625.78695 | G51: 56.88972273 | H51: 1.269565217 | BF51: P1S1 | BH51: P1S2 | BJ51: P1S3 | BM51: P1S4 | BO51: P1S5 | BQ51: P1S6 | BT51: P1S7 | BV51: P1S8 | BX51: P1S9 | CA51: P1S10 | CC51: P1S11
D52: tarea41 | E52: glb. | F52: 442.26 | G52: 40.20545455 | H52: 0.6363636364 | BF52: P1S1 | BH52: P1S2 | BJ52: P1S3 | BM52: P1S4 | BO52: P1S5 | BQ52: P1S6 | BT52: P1S7 | BV52: P1S8 | BX52: P1S9 | CA52: P1S10 | CC52: P1S11
D53: tarea42 | E53: glb. | G53: 0
D54: tarea43 | E54: glb. | F54: 13081.908 | G54: 1308.1908 | H54: 0.042 | CH54: P1S1 | CI54: P1S2 | CJ54: P1S3 | CK54: P1S4 | CL54: P1S5 | CM54: P1S6 | CO54: P1S7 | CP54: P1S8 | CQ54: P1S9 | CR54: P1S10
D55: tarea44 | E55: glb. | F55: 87.903 | G55: 8.7903 | H55: 0.65 | CI55: P1S1 | CJ55: P1S2 | CK55: P1S3 | CL55: P1S4 | CM55: P1S5 | CO55: P1S6 | CP55: P1S7 | CQ55: P1S8 | CR55: P1S9 | CS55: P1S10
D56: tarea45 | E56: glb. | F56: 231.99 | G56: 23.199 | H56: 1 | CJ56: P1S1 | CK56: P1S2 | CL56: P1S3 | CM56: P1S4 | CO56: P1S5 | CP56: P1S6 | CQ56: P1S7 | CR56: P1S8 | CS56: P1S9 | CT56: P1S10
D57: tarea46 | E57: glb. | G57: 0
D58: tarea47 | E58: glb. | F58: 77.1 | G58: 7.009090909 | H58: 1.85 | CA58: P1S1 | CB58: P1S2 | CC58: P1S3 | CD58: P1S4 | CE58: P1S5 | CF58: P1S6 | CH58: P1S7 | CI58: P1S8 | CJ58: P1S9 | CK58: P1S10 | CL58: P1S11 | CM58: P1S12 | CO58: P1S13
D59: tarea48 | E59: glb. | F59: 951.79 | G59: 86.52636364 | H59: 0.9 | CD59: P1S1 | CE59: P1S2 | CF59: P1S3 | CH59: P1S4 | CI59: P1S5 | CJ59: P1S6 | CK59: P1S7 | CL59: P1S8 | CM59: P1S9 | CO59: P1S10 | CP59: P1S11 | CQ59: P1S12 | CR59: P1S13
D60: tarea49 | E60: glb. | F60: 368.97 | G60: 33.54272727 | H60: 0.6 | CD60: P1S1 | CE60: P1S2 | CF60: P1S3 | CH60: P1S4 | CI60: P1S5 | CJ60: P1S6 | CK60: P1S7 | CL60: P1S8 | CM60: P1S9 | CO60: P1S10 | CP60: P1S11 | CQ60: P1S12 | CR60: P1S13
D61: tarea50 | E61: glb. | F61: 96.33 | G61: 24.0825 | H61: 2 | CO61: P1S1 | CP61: P1S1 | CQ61: P1S2 | CR61: P1S2
D62: tarea51 | E62: glb. | F62: 4582.216975 | G62: 416.5651795 | H62: 0.75 | CD62: P1S1 | CE62: P1S2 | CF62: P1S3 | CH62: P1S4 | CI62: P1S5 | CJ62: P1S6 | CK62: P1S7 | CL62: P1S8 | CM62: P1S9 | CO62: P1S10 | CP62: P1S11 | CQ62: P1S12 | CR62: P1S13
D63: tarea52 | E63: glb. | F63: 259.3225 | G63: 86.44083333 | H63: 1.2 | CO63: P1S1 | CP63: P1S2 | CQ63: P1S3
D64: tarea53 | E64: glb. | F64: 3526.04 | G64: 352.604 | H64: 0.3 | CI64: P1S1 | CJ64: P1S2 | CK64: P1S3 | CL64: P1S4 | CM64: P1S5 | CO64: P1S6 | CP64: P1S7 | CQ64: P1S8 | CR64: P1S9 | CS64: P1S10 | CT64: P1S11 | CV64: P1S12 | CW64: P1S13
D65: tarea54 | E65: glb. | F65: 173.28 | G65: 17.328 | H65: 1.5 | CL65: P1S1 | CM65: P1S2 | CO65: P1S3 | CP65: P1S4 | CQ65: P1S5 | CR65: P1S6 | CS65: P1S7 | CT65: P1S8 | CV65: P1S9 | CW65: P1S10 | CX65: P1S11 | CZ65: P1S12 | DA65: P1S13
D66: tarea55 | E66: glb. | F66: 240.76 | G66: 24.076 | H66: 0.6 | CP66: P1S1 | CQ66: P1S2 | CR66: P1S3 | CS66: P1S4 | CT66: P1S5 | CV66: P1S6 | CW66: P1S7 | CX66: P1S8 | CZ66: P1S9 | DA66: P1S10 | DC66: P1S11 | DD66: P1S12 | DE66: P1S13
D67: tarea56 | E67: glb. | F67: 433.02 | G67: 36.085 | H67: 1.5 | CW67: P1S1 | CX67: P1S2 | CZ67: P1S3 | DA67: P1S4 | DC67: P1S5 | DD67: P1S6 | DE67: P1S7 | DF67: P1S8 | DG67: P1S9 | DH67: P1S10 | DJ67: P1S11 | DK67: P1S12 | DL67: P1S13
D68: tarea57 | E68: glb. | F68: 498.05 | G68: 41.50416667 | H68: 0.65 | CZ68: P1S1 | DA68: P1S2 | DC68: P1S3 | DD68: P1S4 | DE68: P1S5 | DF68: P1S6 | DG68: P1S7 | DH68: P1S8 | DJ68: P1S9 | DK68: P1S10 | DL68: P1S11 | DM68: P1S12 | DN68: P1S13
D69: tarea58 | E69: glb. | F69: 584.85 | G69: 53.16818182 | H69: 0.2 | DH69: P1S1 | DJ69: P1S2 | DK69: P1S3 | DL69: P1S4 | DM69: P1S5 | DN69: P1S6 | DO69: P1S7 | DQ69: P1S8 | DR69: P1S9 | DS69: P1S10 | DT69: P1S11 | DU69: P1S12 | DV69: P1S13 | DX69: P1S14
D70: tarea59 | E70: glb. | G70: 0
D71: tarea60 | E71: glb. | F71: 1 | G71: 9.5 | H71: 3 | CP71: P1S1 | CQ71: P1S2 | CR71: P1S3 | CS71: P1S4 | CT71: P1S5 | CV71: P1S6 | CW71: P1S7 | CX71: P1S8 | CZ71: P1S9 | DA71: P1S10 | DC71: P1S11
D72: tarea61 | E72: glb. | F72: 1 | G72: 9.5 | H72: 4 | CQ72: P1S1 | CR72: P1S2 | CS72: P1S3 | CT72: P1S4 | CV72: P1S5 | CW72: P1S6 | CX72: P1S7 | CZ72: P1S8 | DA72: P1S9 | DC72: P1S10 | DD72: P1S11
D73: tarea62 | E73: glb. | F73: 1 | G73: 9.5 | H73: 4 | CR73: P1S1 | CS73: P1S2 | CT73: P1S3 | CV73: P1S4 | CW73: P1S5 | CX73: P1S6 | CZ73: P1S7 | DA73: P1S8 | DC73: P1S9 | DD73: P1S10 | DE73: P1S11
D74: tarea63 | E74: glb. | F74: 1 | G74: 9.5 | H74: 4 | DE74: P1S1 | DF74: P1S2 | DG74: P1S3 | DH74: P1S4 | DJ74: P1S5 | DK74: P1S6 | DL74: P2S1 | DM74: P2S2 | DN74: P2S3 | DO74: P2S4 | DQ74: P2S5 | DR74: P2S6 | DS74: P2S7
D75: tarea64 | E75: glb. | G75: 0
D76: tarea65 | E76: glb. | F76: 1 | G76: 9.5 | H76: 4 | CP76: P1S1 | CQ76: P1S2 | CR76: P1S3 | CS76: P1S4 | CT76: P1S5 | CV76: P1S6 | CW76: P1S7 | CX76: P1S8 | CZ76: P1S9 | DA76: P1S10 | DC76: P1S11
D77: tarea66 | E77: glb. | F77: 1 | G77: 9.5 | H77: 4 | CQ77: P1S1 | CR77: P1S2 | CS77: P1S3 | CT77: P1S4 | CV77: P1S5 | CW77: P1S6 | CX77: P1S7 | CZ77: P1S8 | DA77: P1S9 | DC77: P1S10 | DD77: P1S11
D78: tarea67 | E78: glb. | F78: 1 | G78: 9.5 | H78: 4 | CR78: P1S1 | CS78: P1S2 | CT78: P1S3 | CV78: P1S4 | CW78: P1S5 | CX78: P1S6 | CZ78: P1S7 | DA78: P1S8 | DC78: P1S9 | DD78: P1S10 | DE78: P1S11
D79: tarea68 | E79: glb. | F79: 1 | G79: 9.5 | H79: 4 | DE79: P1S1 | DF79: P1S2 | DG79: P1S3 | DH79: P1S4 | DJ79: P1S5 | DK79: P1S6 | DL79: P2S1 | DM79: P2S2 | DN79: P2S3 | DO79: P2S4 | DQ79: P2S5 | DR79: P2S6 | DS79: P2S7

Sheet RecursosMO, despues
B2: Al ejecutar la macro, no grafica los datos de las celdas I8 y I12 como deberian de ser como una sola grafica, sino los grafica de manera separada
H7: Horario | I7: JULIO | AI7: AGOSTO | BN7: SETIEMBRE | CR7: OCTUBRE | DW7: NOVIEMBRE
H8: 9.5 | I8: 1 | J8: 2 | K8: 3 | L8: 4 | M8: 5 | N8: 6 | O8: 7 | P8: 8 | Q8: 9 | R8: 10 | S8: 11 | T8: 12 | U8: 13 | V8: 14 | W8: 15 | X8: 16 | Y8: 17 | Z8: 18 | AA8: 19 | AB8: 20 | AC8: 21 | AD8: 22 | AE8: 23 | AF8: 24 | AG8: 25 | AH8: 26 | AI8: 27 | AJ8: 28 | AK8: 29 | AL8: 30 | AM8: 31 | AN8: 32 | AO8: 33 | AP8: 34 | AQ8: 35 | AR8: 36 | AS8: 37 | AT8: 38 | AU8: 39 | AV8: 40 | AW8: 41 | AX8: 42 | AY8: 43 | AZ8: 44 | BA8: 45 | BB8: 46 | BC8: 47 | BD8: 48 | BE8: 49 | BF8: 50 | BG8: 51 | BH8: 52 | BI8: 53 | BJ8: 54 | BK8: 55 | BL8: 56 | BM8: 57 | BN8: 58 | BO8: 59 | BP8: 60 | BQ8: 61 | BR8: 62 | BS8: 63 | BT8: 64 | BU8: 65 | BV8: 66 | BW8: 67 | BX8: 68 | BY8: 69 | BZ8: 70 | CA8: 71 | CB8: 72 | CC8: 73 | CD8: 74 | CE8: 75 | CF8: 76 | CG8: 77 | CH8: 78 | CI8: 79 | CJ8: 80 | CK8: 81 | CL8: 82 | CM8: 83 | CN8: 84 | CO8: 85 | CP8: 86 | CQ8: 87 | CR8: 88 | CS8: 89 | CT8: 90 | CU8: 91 | CV8: 92 | CW8: 93 | CX8: 94 | CY8: 95 | CZ8: 96 | DA8: 97 | DB8: 98 | DC8: 99 | DD8: 100 | DE8: 101 | DF8: 102 | DG8: 103 | DH8: 104 | DI8: 105 | DJ8: 106 | DK8: 107 | DL8: 108 | DM8: 109 | DN8: 110 | DO8: 111 | DP8: 112 | DQ8: 113 | DR8: 114 | DS8: 115 | DT8: 116 | DU8: 117 | DV8: 118 | DW8: 119 | DX8: 120 | DY8: 121 | DZ8: 122 | EA8: 123 | EB8: 124 | EC8: 125 | ED8: 126
I9: Semana Nº 1 | P9: Semana Nº 2 | W9: Semana Nº 3 | AD9: Semana Nº 4 | AK9: Semana Nº 5 | AR9: Semana Nº 6 | AY9: Semana Nº 7 | BF9: Semana Nº 8 | BM9: Semana Nº 9 | BT9: Semana Nº 10 | CA9: Semana Nº 11 | CH9: Semana Nº 12 | CO9: Semana Nº 13 | CV9: Semana Nº 14 | DC9: Semana Nº 15 | DJ9: Semana Nº 16 | DQ9: Semana Nº 17 | DX9: Semana Nº 18
B10: FASE O PLAN | C10: ETAPA | D10: ACTIVIDADES | E10: und | F10: Metrado Piso Tipico | G10: Metrado por Sector | H10: Ratio | I10: L | J10: M | K10: X | L10: J | M10: V | N10: S | O10: D | P10: L | Q10: M | R10: X | S10: J | T10: V | U10: S | V10: D | W10: L | X10: M | Y10: X | Z10: J | AA10: V | AB10: S | AC10: D | AD10: L | AE10: M | AF10: X | AG10: J | AH10: V | AI10: S | AJ10: D | AK10: L | AL10: M | AM10: X | AN10: J | AO10: V | AP10: S | AQ10: D | AR10: L | AS10: M | AT10: X | AU10: J | AV10: V | AW10: S | AX10: D | AY10: L | AZ10: M | BA10: X | BB10: J | BC10: V | BD10: S | BE10: D | BF10: L | BG10: M | BH10: X | BI10: J | BJ10: V | BK10: S | BL10: D | BM10: L | BN10: M | BO10: X | BP10: J | BQ10: V | BR10: S | BS10: D | BT10: L | BU10: M | BV10: X | BW10: J | BX10: V | BY10: S | BZ10: D | CA10: L | CB10: M | CC10: X | CD10: J | CE10: V | CF10: S | CG10: D | CH10: L | CI10: M | CJ10: X | CK10: J | CL10: V | CM10: S | CN10: D | CO10: L | CP10: M | CQ10: X | CR10: J | CS10: V | CT10: S | CU10: D | CV10: L | CW10: M | CX10: X | CY10: J | CZ10: V | DA10: S | DB10: D | DC10: L | DD10: M | DE10: X | DF10: J | DG10: V | DH10: S | DI10: D | DJ10: L | DK10: M | DL10: X | DM10: J | DN10: V | DO10: S | DP10: D | DQ10: L | DR10: M | DS10: X | DT10: J | DU10: V | DV10: S | DW10: D | DX10: L | DY10: M | DZ10: X | EA10: J | EB10: V | EC10: S | ED10: D
H11: Productividad | I11: 2020-07-06 | J11: 2020-07-07 | K11: 2020-07-08 | L11: 2020-07-09 | M11: 2020-07-10 | N11: 2020-07-11 | O11: 2020-07-12 | P11: 2020-07-13 | Q11: 2020-07-14 | R11: 2020-07-15 | S11: 2020-07-16 | T11: 2020-07-17 | U11: 2020-07-18 | V11: 2020-07-19 | W11: 2020-07-20 | X11: 2020-07-21 | Y11: 2020-07-22 | Z11: 2020-07-23 | AA11: 2020-07-24 | AB11: 2020-07-25 | AC11: 2020-07-26 | AD11: 2020-07-27 | AE11: 2020-07-28 | AF11: 2020-07-29 | AG11: 2020-07-30 | AH11: 2020-07-31 | AI11: 2020-08-01 | AJ11: 2020-08-02 | AK11: 2020-08-03 | AL11: 2020-08-04 | AM11: 2020-08-05 | AN11: 2020-08-06 | AO11: 2020-08-07 | AP11: 2020-08-08 | AQ11: 2020-08-09 | AR11: 2020-08-10 | AS11: 2020-08-11 | AT11: 2020-08-12 | AU11: 2020-08-13 | AV11: 2020-08-14 | AW11: 2020-08-15 | AX11: 2020-08-16 | AY11: 2020-08-17 | AZ11: 2020-08-18 | BA11: 2020-08-19 | BB11: 2020-08-20 | BC11: 2020-08-21 | BD11: 2020-08-22 | BE11: 2020-08-23 | BF11: 2020-08-24 | BG11: 2020-08-25 | BH11: 2020-08-26 | BI11: 2020-08-27 | BJ11: 2020-08-28 | BK11: 2020-08-29 | BL11: 2020-08-30 | BM11: 2020-08-31 | BN11: 2020-09-01 | BO11: 2020-09-02 | BP11: 2020-09-03 | BQ11: 2020-09-04 | BR11: 2020-09-05 | BS11: 2020-09-06 | BT11: 2020-09-07 | BU11: 2020-09-08 | BV11: 2020-09-09 | BW11: 2020-09-10 | BX11: 2020-09-11 | BY11: 2020-09-12 | BZ11: 2020-09-13 | CA11: 2020-09-14 | CB11: 2020-09-15 | CC11: 2020-09-16 | CD11: 2020-09-17 | CE11: 2020-09-18 | CF11: 2020-09-19 | CG11: 2020-09-20 | CH11: 2020-09-21 | CI11: 2020-09-22 | CJ11: 2020-09-23 | CK11: 2020-09-24 | CL11: 2020-09-25 | CM11: 2020-09-26 | CN11: 2020-09-27 | CO11: 2020-09-28 | CP11: 2020-09-29 | CQ11: 2020-09-30 | CR11: 2020-10-01 | CS11: 2020-10-02 | CT11: 2020-10-03 | CU11: 2020-10-04 | CV11: 2020-10-05 | CW11: 2020-10-06 | CX11: 2020-10-07 | CY11: 2020-10-08 | CZ11: 2020-10-09 | DA11: 2020-10-10 | DB11: 2020-10-11 | DC11: 2020-10-12 | DD11: 2020-10-13 | DE11: 2020-10-14 | DF11: 2020-10-15 | DG11: 2020-10-16 | DH11: 2020-10-17 | DI11: 2020-10-18 | DJ11: 2020-10-19 | DK11: 2020-10-20 | DL11: 2020-10-21 | DM11: 2020-10-22 | DN11: 2020-10-23 | DO11: 2020-10-24 | DP11: 2020-10-25 | DQ11: 2020-10-26 | DR11: 2020-10-27 | DS11: 2020-10-28 | DT11: 2020-10-29 | DU11: 2020-10-30 | DV11: 2020-10-31 | DW11: 2020-11-01 | DX11: 2020-11-02 | DY11: 2020-11-03 | DZ11: 2020-11-04 | EA11: 2020-11-05 | EB11: 2020-11-06 | EC11: 2020-11-07 | ED11: 2020-11-08
D12: tarea1 | E12: glb. | H12: Total M.O | I12: 2 | J12: 2 | K12: 2 | L12: 2 | M12: 2 | N12: 2 | O12: 0 | P12: 10 | Q12: 12 | R12: 14 | S12: 16 | T12: 16 | U12: 16 | V12: 0 | W12: 9.425682507 | X12: 5.425682507 | Y12: 3.425682507 | Z12: 1.425682507 | AA12: 1.425682507 | AB12: 1.425682507 | AC12: 0 | AD12: 7.638003081 | AE12: 0 | AF12: 0 | AG12: 9.966966239 | AH12: 12.23186794 | AI12: 18.02223278 | AJ12: 0 | AK12: 30.14831739 | AL12: 68.58273801 | AM12: 68.58273801 | AN12: 68.58273801 | AO12: 62.37041743 | AP12: 60.04145427 | AQ12: 0 | AR12: 63.72274805 | AS12: 60.70793775 | AT12: 53.06907837 | AU12: 14.63465776 | AV12: 23.34167564 | AW12: 31.81532394 | AX12: 0 | AY12: 38.86733975 | AZ12: 46.05861219 | BA12: 67.20527217 | BB12: 80.16831058 | BC12: 83.68108535 | BD12: 83.68108535 | BE12: 0 | BF12: 96.97692771 | BG12: 86.68108535 | BH12: 96.97692771 | BI12: 77.97406746 | BJ12: 79.79626152 | BK12: 69.50041916 | BL12: 0 | BM12: 79.79626152 | BN12: 69.50041916 | BO12: 79.79626152 | BP12: 69.50041916 | BQ12: 79.79626152 | BR12: 71.50041916 | BS12: 0 | BT12: 81.79626152 | BU12: 71.50041916 | BV12: 81.79626152 | BW12: 71.50041916 | BX12: 74.74424571 | BY12: 57.25713091 | BZ12: 0 | CA12: 40.18937458 | CB12: 14.15493927 | CC12: 16.45078164 | CD12: 42.71085612 | CE12: 42.71085612 | CF12: 42.71085612 | CG12: 0 | CH12: 48.4944365 | CI12: 57.66115743 | CJ12: 60.10315743 | CK12: 60.10315743 | CL12: 62.20777282 | CM12: 62.20777282 | CN12: 0 | CO12: 78.19661492 | CP12: 82.21135986 | CQ12: 90.21135986 | CR12: 87.29251776 | CS12: 39.88302053 | CT12: 39.28157895 | CU12: 0 | CV12: 36.83957895 | CW12: 42.09893117 | CX12: 31.53365182 | CY12: 0 | CZ12: 34.15496761 | DA12: 34.15496761 | DB12: 0 | DC12: 32.05035223 | DD12: 25.05035223 | DE12: 25.05035223 | DF12: 15.88066802 | DG12: 15.88066802 | DH12: 16.7601417 | DI12: 0 | DJ12: 16.7601417 | DK12: 16.7601417 | DL12: 16.7601417 | DM12: 11.50078947 | DN12: 11.50078947 | DO12: 8.879473684 | DP12: 0 | DQ12: 8.879473684 | DR12: 8.879473684 | DS12: 8.879473684 | DT12: 0.8794736842 | DU12: 0.8794736842 | DV12: 0.8794736842 | DW12: 0 | DX12: 0.8794736842 | DY12: 0 | DZ12: 0 | EA12: 0 | EB12: 0 | EC12: 0 | ED12: 0 | EE12: 0 | EF12: 0 | EG12: 0 | EH12: 0 | EI12: 0 | EJ12: 0 | EK12: 0 | EL12: 0 | EM12: 0 | EN12: 0 | EO12: 0 | EP12: 0 | EQ12: 0 | ER12: 0 | ES12: 0 | ET12: 0 | EU12: 0 | EV12: 0 | EW12: 0 | EX12: 0 | EY12: 0 | EZ12: 0 | FA12: 0 | FB12: 0 | FC12: 0 | FD12: 0 | FE12: 0 | FF12: 0
D13: tarea2 | E13: glb. | F13: 1 | G13: 9.5 | H13: 2 | I13: 2 | J13: 2 | K13: 2 | L13: 2 | M13: 2 | N13: 2 | P13: 2
D14: tarea3 | E14: glb.
D15: tarea4 | E15: glb. | F15: 1 | G15: 9.5 | H15: 4 | P15: 4 | Q15: 4 | R15: 4 | S15: 4 | T15: 4 | U15: 4
D16: tarea5 | E16: glb. | F16: 1 | G16: 9.5 | H16: 4 | P16: 4 | Q16: 4 | R16: 4 | S16: 4 | T16: 4 | U16: 4
D17: tarea6 | E17: glb. | F17: 1 | G17: 9.5 | H17: 4 | Q17: 4 | R17: 4 | S17: 4 | T17: 4 | U17: 4 | W17: 4
D18: tarea7 | E18: glb. | F18: 1 | G18: 9.5 | H18: 2 | R18: 2 | S18: 2 | T18: 2 | U18: 2 | W18: 2 | X18: 2
D19: tarea8 | E19: glb. | F19: 1 | G19: 9.5 | H19: 2 | S19: 2 | T19: 2 | U19: 2 | W19: 2 | X19: 2 | Y19: 2
D20: tarea9 | E20: glb. | F20: 1 | G20: 9.5 | H20: 2 | BR20: 2 | BT20: 2 | BU20: 2 | BV20: 2 | BW20: 2 | BX20: 2 | BY20: 2 | CA20: 2 | CB20: 2 | CC20: 2 | CD20: 2 | CE20: 2 | CF20: 2 | CH20: 2 | CI20: 2 | CJ20: 2 | CK20: 2 | CL20: 2 | CM20: 2 | CO20: 2 | CP20: 2 | CQ20: 2 | CR20: 2 | CS20: 2 | CT20: 2 | CV20: 2 | CW20: 2
D21: tarea10 | E21: glb. | F21: 1 | G21: 9.5 | H21: 3 | BF21: 3 | BG21: 3 | BH21: 3 | BI21: 3 | BJ21: 3 | BK21: 3 | BM21: 3 | BN21: 3 | BO21: 3 | BP21: 3 | BQ21: 3 | BR21: 3 | BT21: 3 | BU21: 3 | BV21: 3 | BW21: 3 | BX21: 3 | BY21: 3 | CA21: 3 | CB21: 3 | CC21: 3 | CD21: 3 | CE21: 3 | CF21: 3 | CH21: 3 | CI21: 3 | CJ21: 3 | CK21: 3 | CL21: 3 | CM21: 3 | CO21: 3
D22: tarea11 | E22: glb.
D23: tarea12 | E23: glb. | F23: 736.632 | G23: =+F23/8 -> 92.079 | H23: 0.1470909091 | W23: 1.425682507 | X23: 1.425682507 | Y23: 1.425682507 | Z23: 1.425682507 | AA23: 1.425682507 | AB23: 1.425682507 | AD23: 1.425682507 | AG23: 1.425682507
D24: tarea13 | E24: glb. | F24: 221 | G24: =+F24/8 -> 27.625 | H24: 2.136363636 | AD24: 6.212320574 | AG24: 6.212320574 | AH24: 6.212320574 | AI24: 6.212320574 | AK24: 6.212320574 | AL24: 6.212320574 | AM24: 6.212320574 | AN24: 6.212320574
D25: tarea14 | E25: glb.
D26: tarea15 | E26: glb. | F26: 270.4185 | G26: =+F26/8 -> 33.8023125 | H26: 0.6545454545 | AG26: 2.328963158 | AH26: 2.328963158 | AI26: 2.328963158 | AK26: 2.328963158 | AL26: 2.328963158 | AM26: 2.328963158 | AN26: 2.328963158 | AO26: 2.328963158
D27: tarea16 | E27: glb. | F27: 6678.2 | G27: =+F27/8 -> 834.775 | H27: 0.042 | AH27: 3.690584211 | AI27: 3.690584211 | AK27: 3.690584211 | AL27: 3.690584211 | AM27: 3.690584211 | AN27: 3.690584211 | AO27: 3.690584211 | AP27: 3.690584211
D28: tarea17 | E28: glb. | F28: 171.02 | G28: 21.3775 | H28: 1.909090909 | AI28: 4.295956938 | AK28: 4.295956938 | AL28: 4.295956938 | AM28: 4.295956938 | AN28: 4.295956938 | AO28: 4.295956938 | AP28: 4.295956938 | AR28: 4.295956938
D29: tarea18 | E29: glb. | F29: 162.25 | G29: 20.28125 | H29: 0.7 | AI29: 1.494407895 | AK29: 1.494407895 | AL29: 1.494407895 | AM29: 1.494407895 | AN29: 1.494407895 | AO29: 1.494407895 | AP29: 1.494407895 | AR29: 1.494407895
D30: tarea19 | E30: glb. | F30: 21942.43883 | G30: 2742.804854 | H30: 0.042 | AK30: 12.12608462 | AL30: 12.12608462 | AM30: 12.12608462 | AN30: 12.12608462 | AO30: 12.12608462 | AP30: 12.12608462 | AR30: 12.12608462 | AS30: 12.12608462
D31: tarea20 | E31: glb. | F31: 1463.001 | G31: 182.875125 | H31: 1.909090909 | AL31: 36.75002512 | AM31: 36.75002512 | AN31: 36.75002512 | AO31: 36.75002512 | AP31: 36.75002512 | AR31: 36.75002512 | AS31: 36.75002512 | AT31: 36.75002512
D32: tarea21 | E32: glb. | F32: 182.877225 | G32: 22.85965313 | H32: 0.7 | AL32: 1.684395493 | AM32: 1.684395493 | AN32: 1.684395493 | AO32: 1.684395493 | AP32: 1.684395493 | AR32: 1.684395493 | AS32: 1.684395493 | AT32: 1.684395493
D33: tarea22 | E33: glb. | G33: 0
D34: tarea23 | E34: glb. | F34: 200 | G34: =+F34/8 -> 25 | H34: 2.136363636 | AR34: 5.622009569 | AS34: 5.622009569 | AT34: 5.622009569 | AU34: 5.622009569 | AV34: 5.622009569 | AW34: 5.622009569 | AY34: 5.622009569 | AZ34: 5.622009569
D35: tarea24 | E35: glb. | F35: 132.99 | G35: 16.62375 | H35: 1 | AR35: 1.749868421 | AS35: 1.749868421 | AT35: 1.749868421 | AU35: 1.749868421 | AV35: 1.749868421 | AW35: 1.749868421 | AY35: 1.749868421 | AZ35: 1.749868421
D36: tarea25 | E36: glb. | F36: 5022.432 | G36: 627.804 | H36: 0.042 | AS36: 2.775554526 | AT36: 2.775554526 | AU36: 2.775554526 | AV36: 2.775554526 | AW36: 2.775554526 | AY36: 2.775554526 | AZ36: 2.775554526 | BA36: 2.775554526
D37: tarea26 | E37: glb. | F37: 346.45 | G37: 43.30625 | H37: 0.7636363636 | AT37: 3.481076555 | AU37: 3.481076555 | AV37: 3.481076555 | AW37: 3.481076555 | AY37: 3.481076555 | AZ37: 3.481076555 | BA37: 3.481076555 | BB37: 3.481076555
D38: tarea27 | E38: glb. | F38: 109.239 | G38: 13.654875 | H38: 0.7 | AT38: 1.006148684 | AU38: 1.006148684 | AV38: 1.006148684 | AW38: 1.006148684 | AY38: 1.006148684 | AZ38: 1.006148684 | BA38: 1.006148684 | BB38: 1.006148684
D39: tarea28 | E39: glb. | G39: =+F39/8 -> 0 | H39: 0.9043478261 | AU39: 0 | AV39: 0 | AW39: 0 | AY39: 0 | AZ39: 0 | BA39: 0 | BB39: 0 | BC39: 0
D40: tarea29 | E40: glb.
D41: tarea30 | E41: glb. | F41: 21663.88973 | G41: =+F41/11 -> 1969.444521 | H41: 0.042 | AV41: 8.707017881 | AW41: 8.707017881 | AY41: 8.707017881 | AZ41: 8.707017881 | BA41: 8.707017881 | BB41: 8.707017881 | BC41: 8.707017881 | BD41: 8.707017881 | BF41: 8.707017881 | BG41: 8.707017881 | BH41: 8.707017881
D42: tarea31 | E42: glb. | F42: 442.26 | G42: =+F42/11 -> 40.20545455 | H42: 1.75 | AW42: 7.406267943 | AY42: 7.406267943 | AZ42: 7.406267943 | BA42: 7.406267943 | BB42: 7.406267943 | BC42: 7.406267943 | BD42: 7.406267943 | BF42: 7.406267943 | BG42: 7.406267943 | BH42: 7.406267943 | BI42: 7.406267943
D43: tarea32 | E43: glb. | F43: 62.244 | G43: 5.658545455 | H43: 1.792 | AW43: 1.067380364 | AY43: 1.067380364 | AZ43: 1.067380364 | BA43: 1.067380364 | BB43: 1.067380364 | BC43: 1.067380364 | BD43: 1.067380364 | BF43: 1.067380364 | BG43: 1.067380364 | BH43: 1.067380364 | BI43: 1.067380364
D44: tarea33 | E44: glb. | G44: 0
D45: tarea34 | E45: glb. | F45: 941.64 | G45: =+F45/22 -> 42.80181818 | H45: 1.565217391 | AY45: 7.05201581 | AZ45: 7.05201581 | BA45: 7.05201581 | BB45: 7.05201581 | BC45: 7.05201581 | BD45: 7.05201581 | BF45: 7.05201581 | BG45: 7.05201581 | BH45: 7.05201581 | BI45: 7.05201581 | BJ45: 7.05201581 | BK45: 7.05201581 | BM45: 7.05201581 | BN45: 7.05201581 | BO45: 7.05201581 | BP45: 7.05201581 | BQ45: 7.05201581 | BR45: 7.05201581 | BT45: 7.05201581 | BU45: 7.05201581 | BV45: 7.05201581 | BW45: 7.05201581
D46: tarea35 | E46: glb. | F46: 35785.14143 | G46: =+F46/22 -> 1626.597338 | H46: 0.042 | AZ46: 7.19127244 | BA46: 7.19127244 | BB46: 7.19127244 | BC46: 7.19127244 | BD46: 7.19127244 | BF46: 7.19127244 | BG46: 7.19127244 | BH46: 7.19127244 | BI46: 7.19127244 | BJ46: 7.19127244 | BK46: 7.19127244 | BM46: 7.19127244 | BN46: 7.19127244 | BO46: 7.19127244 | BP46: 7.19127244 | BQ46: 7.19127244 | BR46: 7.19127244 | BT46: 7.19127244 | BU46: 7.19127244 | BV46: 7.19127244 | BW46: 7.19127244 | BX46: 7.19127244
D47: tarea36 | E47: glb. | F47: 3808.017 | G47: 173.0916818 | H47: 1.565217391 | BA47: 28.51853797 | BB47: 28.51853797 | BC47: 28.51853797 | BD47: 28.51853797 | BF47: 28.51853797 | BG47: 28.51853797 | BH47: 28.51853797 | BI47: 28.51853797 | BJ47: 28.51853797 | BK47: 28.51853797 | BM47: 28.51853797 | BN47: 28.51853797 | BO47: 28.51853797 | BP47: 28.51853797 | BQ47: 28.51853797 | BR47: 28.51853797 | BT47: 28.51853797 | BU47: 28.51853797 | BV47: 28.51853797 | BW47: 28.51853797 | BX47: 28.51853797 | BY47: 28.51853797
D48: tarea37 | E48: glb. | F48: 78318.23631 | G48: 3559.919832 | H48: 0.042 | BB48: 15.73859294 | BC48: 15.73859294 | BD48: 15.73859294 | BF48: 15.73859294 | BG48: 15.73859294 | BH48: 15.73859294 | BI48: 15.73859294 | BJ48: 15.73859294 | BK48: 15.73859294 | BM48: 15.73859294 | BN48: 15.73859294 | BO48: 15.73859294 | BP48: 15.73859294 | BQ48: 15.73859294 | BR48: 15.73859294 | BT48: 15.73859294 | BU48: 15.73859294 | BV48: 15.73859294 | BW48: 15.73859294 | BX48: 15.73859294 | BY48: 15.73859294 | CA48: 15.73859294
D49: tarea38 | E49: glb. | F49: 1 | G49: 9.5 | H49: 4 | BC49: 4 | BD49: 4 | BF49: 4 | BG49: 4 | BH49: 4 | BI49: 4 | BJ49: 4 | BK49: 4 | BM49: 4 | BN49: 4 | BO49: 4 | BP49: 4 | BQ49: 4 | BR49: 4 | BT49: 4 | BU49: 4 | BV49: 4 | BW49: 4 | BX49: 4 | BY49: 4 | CA49: 4 | CB49: 4
D50: tarea39 | E50: glb. | F50: 1 | G50: 9.5 | H50: 4 | BC50: 4 | BD50: 4 | BF50: 4 | BG50: 4 | BH50: 4 | BI50: 4 | BJ50: 4 | BK50: 4 | BM50: 4 | BN50: 4 | BO50: 4 | BP50: 4 | BQ50: 4 | BR50: 4 | BT50: 4 | BU50: 4 | BV50: 4 | BW50: 4 | BX50: 4 | BY50: 4 | CA50: 4 | CB50: 4
D51: tarea40 | E51: glb. | F51: 625.78695 | G51: =+F51/11 -> 56.88972273 | H51: 1.269565217 | BF51: 7.602654021 | BH51: 7.602654021 | BJ51: 7.602654021 | BM51: 7.602654021 | BO51: 7.602654021 | BQ51: 7.602654021 | BT51: 7.602654021 | BV51: 7.602654021 | BX51: 7.602654021 | CA51: 7.602654021 | CC51: 7.602654021
D52: tarea41 | E52: glb. | F52: 442.26 | G52: =+F52/11 -> 40.20545455 | H52: 0.6363636364 | BF52: 2.693188343 | BH52: 2.693188343 | BJ52: 2.693188343 | BM52: 2.693188343 | BO52: 2.693188343 | BQ52: 2.693188343 | BT52: 2.693188343 | BV52: 2.693188343 | BX52: 2.693188343 | CA52: 2.693188343 | CC52: 2.693188343
D53: tarea42 | E53: glb.
D54: tarea43 | E54: glb. | F54: 13081.908 | G54: =+F54/10 -> 1308.1908 | H54: 0.042 | CH54: 5.783580379 | CI54: 5.783580379 | CJ54: 5.783580379 | CK54: 5.783580379 | CL54: 5.783580379 | CM54: 5.783580379 | CO54: 5.783580379 | CP54: 5.783580379 | CQ54: 5.783580379 | CR54: 5.783580379
D55: tarea44 | E55: glb. | F55: 87.903 | G55: =+F55/10 -> 8.7903 | H55: 0.65 | CI55: 0.6014415789 | CJ55: 0.6014415789 | CK55: 0.6014415789 | CL55: 0.6014415789 | CM55: 0.6014415789 | CO55: 0.6014415789 | CP55: 0.6014415789 | CQ55: 0.6014415789 | CR55: 0.6014415789 | CS55: 0.6014415789
D56: tarea45 | E56: glb. | F56: 231.99 | G56: 23.199 | H56: 1 | CJ56: 2.442 | CK56: 2.442 | CL56: 2.442 | CM56: 2.442 | CO56: 2.442 | CP56: 2.442 | CQ56: 2.442 | CR56: 2.442 | CS56: 2.442 | CT56: 2.442
D57: tarea46 | E57: glb.
D58: tarea47 | E58: glb. | F58: 77.1 | G58: =+F58/13 -> 5.930769231 | H58: 1.85 | CA58: 1.154939271 | CB58: 1.154939271 | CC58: 1.154939271 | CD58: 1.154939271 | CE58: 1.154939271 | CF58: 1.154939271 | CH58: 1.154939271 | CI58: 1.154939271 | CJ58: 1.154939271 | CK58: 1.154939271 | CL58: 1.154939271 | CM58: 1.154939271 | CO58: 1.154939271
D59: tarea48 | E59: glb. | F59: 951.79 | G59: =+F59/13 -> 73.21461538 | H59: 0.9 | CD59: 6.936121457 | CE59: 6.936121457 | CF59: 6.936121457 | CH59: 6.936121457 | CI59: 6.936121457 | CJ59: 6.936121457 | CK59: 6.936121457 | CL59: 6.936121457 | CM59: 6.936121457 | CO59: 6.936121457 | CP59: 6.936121457 | CQ59: 6.936121457 | CR59: 6.936121457
D60: tarea49 | E60: glb. | F60: 368.97 | G60: 28.38230769 | H60: 0.6 | CD60: 1.792566802 | CE60: 1.792566802 | CF60: 1.792566802 | CH60: 1.792566802 | CI60: 1.792566802 | CJ60: 1.792566802 | CK60: 1.792566802 | CL60: 1.792566802 | CM60: 1.792566802 | CO60: 1.792566802 | CP60: 1.792566802 | CQ60: 1.792566802 | CR60: 1.792566802
D61: tarea50 | E61: glb. | F61: 96.33 | G61: =+F61/4 -> 24.0825 | H61: 2 | CO61: 5.07 | CP61: 5.07 | CQ61: 5.07 | CR61: 5.07
D62: tarea51 | E62: glb. | F62: 4582.216975 | G62: =+F62/13 -> 352.4782288 | H62: 0.75 | CD62: 27.82722859 | CE62: 27.82722859 | CF62: 27.82722859 | CH62: 27.82722859 | CI62: 27.82722859 | CJ62: 27.82722859 | CK62: 27.82722859 | CL62: 27.82722859 | CM62: 27.82722859 | CO62: 27.82722859 | CP62: 27.82722859 | CQ62: 27.82722859 | CR62: 27.82722859
D63: tarea52 | E63: glb. | F63: 259.3225 | G63: =+F63/3 -> 86.44083333 | H63: 1.2 | CO63: 10.91884211 | CP63: 10.91884211 | CQ63: 10.91884211
D64: tarea53 | E64: glb. | F64: 3526.04 | G64: =+F64/13 -> 271.2338462 | H64: 0.3 | CI64: 8.565279352 | CJ64: 8.565279352 | CK64: 8.565279352 | CL64: 8.565279352 | CM64: 8.565279352 | CO64: 8.565279352 | CP64: 8.565279352 | CQ64: 8.565279352 | CR64: 8.565279352 | CS64: 8.565279352 | CT64: 8.565279352 | CV64: 8.565279352 | CW64: 8.565279352
D65: tarea54 | E65: glb. | F65: 173.28 | G65: =+F65/13 -> 13.32923077 | H65: 1.5 | CL65: 2.104615385 | CM65: 2.104615385 | CO65: 2.104615385 | CP65: 2.104615385 | CQ65: 2.104615385 | CR65: 2.104615385 | CS65: 2.104615385 | CT65: 2.104615385 | CV65: 2.104615385 | CW65: 2.104615385 | CX65: 2.104615385 | CZ65: 2.104615385 | DA65: 2.104615385
D66: tarea55 | E66: glb. | F66: 240.76 | G66: 18.52 | H66: 0.6 | CP66: 1.169684211 | CQ66: 1.169684211 | CR66: 1.169684211 | CS66: 1.169684211 | CT66: 1.169684211 | CV66: 1.169684211 | CW66: 1.169684211 | CX66: 1.169684211 | CZ66: 1.169684211 | DA66: 1.169684211 | DC66: 1.169684211 | DD66: 1.169684211 | DE66: 1.169684211
D67: tarea56 | E67: glb. | F67: 433.02 | G67: =+F67/13 -> 33.30923077 | H67: 1.5 | CW67: 5.259352227 | CX67: 5.259352227 | CZ67: 5.259352227 | DA67: 5.259352227 | DC67: 5.259352227 | DD67: 5.259352227 | DE67: 5.259352227 | DF67: 5.259352227 | DG67: 5.259352227 | DH67: 5.259352227 | DJ67: 5.259352227 | DK67: 5.259352227 | DL67: 5.259352227
D68: tarea57 | E68: glb. | F68: 498.05 | G68: 38.31153846 | H68: 0.65 | CZ68: 2.621315789 | DA68: 2.621315789 | DC68: 2.621315789 | DD68: 2.621315789 | DE68: 2.621315789 | DF68: 2.621315789 | DG68: 2.621315789 | DH68: 2.621315789 | DJ68: 2.621315789 | DK68: 2.621315789 | DL68: 2.621315789 | DM68: 2.621315789 | DN68: 2.621315789
D69: tarea58 | E69: glb. | F69: 584.85 | G69: =+F69/14 -> 41.775 | H69: 0.2 | DH69: 0.8794736842 | DJ69: 0.8794736842 | DK69: 0.8794736842 | DL69: 0.8794736842 | DM69: 0.8794736842 | DN69: 0.8794736842 | DO69: 0.8794736842 | DQ69: 0.8794736842 | DR69: 0.8794736842 | DS69: 0.8794736842 | DT69: 0.8794736842 | DU69: 0.8794736842 | DV69: 0.8794736842 | DX69: 0.8794736842
D70: tarea59 | E70: glb.
D71: tarea60 | E71: glb. | F71: 1 | G71: 9.5 | H71: 3 | CP71: 3 | CQ71: 3 | CR71: 3 | CS71: 3 | CT71: 3 | CV71: 3 | CW71: 3 | CX71: 3 | CZ71: 3 | DA71: 3 | DC71: 3
D72: tarea61 | E72: glb. | F72: 1 | G72: 9.5 | H72: 4 | CQ72: 4 | CR72: 4 | CS72: 4 | CT72: 4 | CV72: 4 | CW72: 4 | CX72: 4 | CZ72: 4 | DA72: 4 | DC72: 4 | DD72: 4
D73: tarea62 | E73: glb. | F73: 1 | G73: 9.5 | H73: 4 | CR73: 4 | CS73: 4 | CT73: 4 | CV73: 4 | CW73: 4 | CX73: 4 | CZ73: 4 | DA73: 4 | DC73: 4 | DD73: 4 | DE73: 4
D74: tarea63 | E74: glb. | F74: 1 | G74: 9.5 | H74: 4 | DE74: 4 | DF74: 4 | DG74: 4 | DH74: 4 | DJ74: 4 | DK74: 4 | DL74: 4 | DM74: 4 | DN74: 4 | DO74: 4 | DQ74: 4 | DR74: 4 | DS74: 4
D75: tarea64 | E75: glb. | G75: 0
D76: tarea65 | E76: glb. | F76: 1 | G76: 9.5 | H76: 4 | CP76: 4 | CQ76: 4 | CR76: 4 | CS76: 4 | CT76: 4 | CV76: 4 | CW76: 4 | CX76: 4 | CZ76: 4 | DA76: 4 | DC76: 4
D77: tarea66 | E77: glb. | F77: 1 | G77: 9.5 | H77: 4 | CQ77: 4 | CR77: 4 | CS77: 4 | CT77: 4 | CV77: 4 | CW77: 4 | CX77: 4 | CZ77: 4 | DA77: 4 | DC77: 4 | DD77: 4
D78: tarea67 | E78: glb. | F78: 1 | G78: 9.5 | H78: 4 | CR78: 4 | CS78: 4 | CT78: 4 | CV78: 4 | CW78: 4 | CX78: 4 | CZ78: 4 | DA78: 4 | DC78: 4 | DD78: 4 | DE78: 4
D79: tarea68 | E79: glb. | F79: 1 | G79: 9.5 | H79: 4 | DE79: 4 | DF79: 4 | DG79: 4 | DH79: 4 | DJ79: 4 | DK79: 4 | DL79: 4 | DM79: 4 | DN79: 4 | DO79: 4 | DQ79: 4 | DR79: 4 | DS79: 4
